bitfinex/quotes_BTCUSD_20220731
["timestamp","ask_amount","ask_price","bid_price","bid_amount"]
[1659248224982,0.35856923,23723.0,23718.0,0.40725733]
[1659248224983,0.63637223,23723.0,23718.0,0.40725733]
[1659248226321,0.63637223,23723.0,23718.0,0.40719071]
[1659248226535,0.63637223,23723.0,23719.0,0.05]
[1659248227059,0.05427223,23723.0,23719.0,0.65]
[1659248227255,0.5623,23726.0,23723.0,0.05]
[1659248227478,0.304297,23725.0,23723.0,0.05]
[1659248227688,0.304297,23724.0,23721.0,0.810677]
[1659248227912,0.5623,23726.0,23722.0,0.40725733]
[1659248228127,0.304297,23725.0,23723.0,0.3]
[1659248228358,0.5623,23726.0,23723.0,0.30404474]
[1659248228571,0.304297,23725.0,23723.0,0.30404474]
[1659248228839,0.304297,23724.0,23723.0,0.71130207]
[1659248229001,3.05973468,23730.0,23723.0,0.76130207]
[1659248229215,0.304297,23729.0,23723.0,0.71130207]
[1659248229419,0.304297,23728.0,23723.0,0.40725733]
[1659248229628,0.304297,23727.0,23723.0,0.40725733]
[1659248229838,0.34082763,23726.0,23723.0,0.40725733]
[1659248230190,0.304297,23724.0,23723.0,0.40725733]
[1659248230406,3.05973468,23730.0,23723.0,0.40725733]
[1659248230645,0.304297,23729.0,23723.0,0.40725733]
[1659248230878,0.304297,23728.0,23723.0,0.40725733]
[1659248231067,0.304297,23727.0,23723.0,0.40725733]
[1659248231300,0.304297,23726.0,23723.0,0.40725733]
[1659248231513,0.304297,23725.0,23723.0,0.40725733]
[1659248231730,0.304297,23724.0,23723.0,0.40725733]
[1659248232371,0.304297,23724.0,23723.0,0.70725733]
[1659248232671,3.05973468,23730.0,23723.0,0.70725733]
[1659248232871,0.304297,23729.0,23723.0,0.70725733]
[1659248233085,0.304297,23727.0,23723.0,0.75725733]
[1659248233316,3.05973468,23730.0,23723.0,0.75725733]
[1659248233317,0.304297,23726.0,23723.0,0.75725733]
[1659248233535,0.304297,23725.0,23723.0,0.40725733]
[1659248233761,0.304297,23724.0,23723.0,0.40725733]
[1659248234631,3.05973468,23730.0,23723.0,0.40725733]
[1659248234851,0.304297,23729.0,23723.0,0.40725733]
[1659248235065,0.304297,23728.0,23723.0,0.40725733]
[1659248235515,0.304297,23726.0,23723.0,0.40725733]
[1659248235741,0.304297,23725.0,23723.0,0.40725733]
[1659248235952,0.304297,23724.0,23723.0,0.40725733]
[1659248236169,3.15973468,23730.0,23723.0,0.40725733]
[1659248236478,0.304297,23729.0,23723.0,0.40725733]
[1659248236812,0.304297,23728.0,23723.0,0.40725733]
[1659248237044,3.15973468,23730.0,23723.0,0.40725733]
[1659248237045,0.304297,23727.0,23723.0,0.40725733]
[1659248237274,0.304297,23726.0,23723.0,0.40725733]
[1659248237505,0.304297,23725.0,23723.0,0.40718574]
[1659248237728,3.15973468,23730.0,23723.0,0.40718574]
[1659248237943,0.304297,23729.0,23723.0,0.40718574]
[1659248238176,0.304297,23728.0,23723.0,0.40718574]
[1659248238399,3.15973468,23730.0,23723.0,0.45718574]
[1659248238400,0.304297,23727.0,23723.0,0.45718574]
[1659248238644,0.304297,23726.0,23723.0,0.45718574]
[1659248238863,0.304297,23725.0,23723.0,0.45718574]
[1659248239130,3.15973468,23730.0,23724.0,0.3]
[1659248239352,0.304297,23729.0,23724.0,0.3]
[1659248239573,0.304297,23728.0,23724.0,0.3]
[1659248239792,0.03653063,23727.0,23723.0,0.50718574]
[1659248240012,0.304297,23728.0,23723.0,0.50718574]
[1659248240230,0.304297,23729.0,23723.0,0.50718574]
[1659248240706,0.304297,23728.0,23723.0,0.50718574]
[1659248240936,0.304297,23729.0,23723.0,0.50718574]
[1659248241166,0.304297,23728.0,23723.0,0.50718574]
[1659248241386,0.304297,23727.0,23723.0,0.50718574]
[1659248241641,0.304297,23729.0,23723.0,0.50718574]
[1659248241843,0.304297,23728.0,23723.0,0.45718574]
[1659248242066,0.304297,23727.0,23723.0,0.40718574]
[1659248242267,3.15973468,23730.0,23723.0,0.40718574]
[1659248242268,0.304297,23729.0,23723.0,0.40718574]
[1659248242442,0.304297,23728.0,23723.0,0.40718574]
[1659248242644,3.15973468,23730.0,23723.0,0.40718574]
[1659248242645,0.304297,23729.0,23723.0,0.40718574]
[1659248242956,0.05,23727.0,23723.0,0.40718574]
[1659248243126,0.03653063,23726.0,23723.0,0.40718574]
[1659248243667,0.34082763,23726.0,23723.0,0.40718574]
[1659248243889,3.10973468,23730.0,23723.0,0.40718574]
[1659248243890,0.304297,23729.0,23723.0,0.40718574]
[1659248244095,0.304297,23728.0,23723.0,0.40718574]
[1659248244299,0.304297,23727.0,23723.0,0.40718574]
[1659248244506,0.304297,23729.0,23723.0,0.40718574]
[1659248244713,0.304297,23728.0,23723.0,0.40718574]
[1659248244935,0.304297,23727.0,23723.0,0.40718574]
[1659248245136,0.304297,23726.0,23723.0,0.40718574]
[1659248245351,0.304297,23725.0,23723.0,0.40718574]
[1659248245628,0.304297,23724.0,23723.0,0.40718574]
[1659248245827,3.15973468,23730.0,23723.0,0.70718574]
[1659248246073,0.304297,23729.0,23723.0,0.70718574]
[1659248246315,0.304297,23728.0,23723.0,0.70718574]
[1659248246534,0.304297,23727.0,23723.0,0.70718574]
[1659248246808,0.05,23727.0,23723.0,0.40718574]
[1659248247032,0.05,23727.0,23718.0,0.210715]
[1659248247033,0.05,23723.0,23718.0,0.210715]
[1659248247257,0.05,23721.0,23716.0,0.32071633]
[1659248247480,0.05,23721.0,23717.0,0.40725733]
[1659248247701,0.08653063,23720.0,23718.0,0.00012703]
[1659248247958,0.05,23720.0,23718.0,0.00012703]
[1659248248385,0.05,23720.0,23717.0,0.40725733]
[1659248248622,0.05,23720.0,23718.0,0.3]
[1659248249290,0.10427223,23724.0,23718.0,0.3]
[1659248249540,0.304297,23723.0,23719.0,0.40725733]
[1659248249750,0.03653063,23722.0,23719.0,0.40725733]
[1659248250002,0.10427223,23724.0,23719.0,0.45725733]
[1659248250244,0.10427223,23724.0,23720.0,0.3]
[1659248250479,0.304297,23723.0,23719.0,0.70725733]
[1659248250752,0.05427223,23724.0,23719.0,0.70725733]
[1659248250944,0.05427223,23724.0,23720.0,0.3]
[1659248251145,0.304297,23723.0,23720.0,0.3]
[1659248251370,0.05427223,23724.0,23720.0,0.3]
[1659248251584,0.304297,23723.0,23720.0,0.3]
[1659248251830,0.9679,23726.0,23720.0,0.4]
[1659248252037,0.304297,23725.0,23720.0,0.4]
[1659248252249,0.304297,23724.0,23720.0,0.4]
[1659248252465,0.34082763,23723.0,23720.0,0.3]
[1659248252687,1.37515733,23726.0,23720.0,0.4]
[1659248252901,0.304297,23725.0,23720.0,0.4]
[1659248253131,1.37515733,23726.0,23720.0,0.4]
[1659248253132,0.98925733,23726.0,23720.0,0.4]
[1659248253356,0.304297,23725.0,23720.0,0.4]
[1659248253575,0.304297,23724.0,23720.0,0.4]
[1659248253824,0.582,23726.0,23720.0,0.80725733]
[1659248254059,0.304297,23725.0,23721.0,0.40725733]
[1659248254285,0.34082763,23724.0,23722.0,0.3]
[1659248254495,0.304297,23723.0,23722.0,0.3]
[1659248254706,0.03653063,23724.0,23722.0,0.3]
[1659248254919,0.304297,23723.0,23722.0,0.3]
[1659248255133,0.03653063,23724.0,23722.0,0.3]
[1659248255352,0.304297,23723.0,23722.0,0.3]
[1659248255848,0.582,23726.0,23722.0,0.3]
[1659248256068,0.304297,23725.0,23722.0,0.3]
[1659248256306,0.304297,23724.0,23722.0,0.3]
[1659248256506,0.304297,23723.0,23722.0,0.3]
[1659248256713,0.582,23726.0,23722.0,0.3]
[1659248256945,0.304297,23725.0,23722.0,0.3]
[1659248257160,0.304297,23724.0,23721.0,0.40725733]
[1659248257379,0.304297,23723.0,23721.0,0.40725733]
[1659248257649,0.03653063,23723.0,23721.0,0.40725733]
[1659248257845,0.582,23726.0,23721.0,0.40725733]
[1659248258066,0.304297,23725.0,23722.0,0.3]
[1659248258311,0.304297,23724.0,23722.0,0.3]
[1659248258511,0.34082763,23724.0,23722.0,0.3]
[1659248258712,0.03653063,23724.0,23722.0,0.3]
[1659248259175,0.304297,23723.0,23722.0,0.3]
[1659248259389,0.582,23726.0,23722.0,0.3]
[1659248259577,0.304297,23725.0,23722.0,0.3]
[1659248259804,0.304297,23724.0,23722.0,0.3]
[1659248260024,0.304297,23723.0,23722.0,0.3]
[1659248260249,0.03653063,23724.0,23721.0,0.40725733]
[1659248260469,0.582,23726.0,23721.0,0.40725733]
[1659248260676,0.30417793,23725.0,23721.0,0.45725733]
[1659248260882,0.304297,23724.0,23722.0,0.3]
[1659248261098,0.304308,23723.0,23722.0,0.3]
[1659248261312,0.03653063,23724.0,23722.0,0.3]
[1659248261545,0.304308,23723.0,23722.0,0.3]
[1659248261754,0.582,23726.0,23721.0,0.42012282]
[1659248262059,0.304308,23725.0,23721.0,0.42012282]
[1659248262276,0.34083863,23724.0,23722.0,0.3]
[1659248262492,0.629,23727.0,23721.0,0.42012282]
[1659248262493,0.304308,23723.0,23721.0,0.42012282]
[1659248262714,0.05,23727.0,23722.0,0.604308]
[1659248262948,0.05,23727.0,23722.0,0.3]
[1659248263172,0.304308,23726.0,23722.0,0.3]
[1659248263376,0.03653063,23725.0,23722.0,0.3]
[1659248264053,0.05,23727.0,23722.0,0.3]
[1659248264277,0.304308,23726.0,23721.0,0.42012282]
[1659248264502,0.304308,23726.0,23722.0,0.3]
[1659248266305,0.304308,23726.0,23721.0,0.42012282]
[1659248266525,0.304308,23726.0,23722.0,0.3]
[1659248267660,0.05,23727.0,23722.0,0.3]
[1659248267875,0.9188,23729.0,23723.0,0.3]
[1659248268099,0.304308,23728.0,23723.0,0.05]
[1659248268312,0.304308,23727.0,23723.0,0.05]
[1659248268572,0.96575733,23729.0,23723.0,0.05]
[1659248268782,0.304308,23728.0,23723.0,0.05]
[1659248268990,0.304308,23727.0,23723.0,0.05]
[1659248269221,0.304308,23726.0,23723.0,0.05]
[1659248269433,0.96575733,23729.0,23723.0,0.05]
[1659248269556,0.96575733,23729.0,23722.0,0.96793733]
[1659248269557,0.03653063,23726.0,23722.0,0.96793733]
[1659248269856,0.96575733,23729.0,23723.0,0.00040845]
[1659248270009,0.304308,23728.0,23723.0,0.00040845]
[1659248270217,0.304308,23727.0,23723.0,0.00040845]
[1659248270388,0.304308,23726.0,23723.0,0.00040845]
[1659248270600,0.96575733,23729.0,23723.0,0.00040845]
[1659248270807,0.304308,23728.0,23723.0,0.00040845]
[1659248271007,0.304308,23727.0,23723.0,0.00040845]
[1659248271235,0.304308,23726.0,23723.0,0.00040845]
[1659248271451,0.96575733,23729.0,23723.0,0.05040845]
[1659248271668,0.304308,23728.0,23723.0,0.05040845]
[1659248271900,0.304308,23727.0,23723.0,0.00040845]
[1659248272124,0.304308,23726.0,23723.0,0.05040845]
[1659248272343,0.96575733,23729.0,23723.0,0.05040845]
[1659248272561,0.40725733,23729.0,23723.0,0.05040845]
[1659248272786,0.304308,23728.0,23723.0,0.05040845]
[1659248273025,0.40725733,23729.0,23723.0,0.05040845]
[1659248273248,0.304308,23728.0,23723.0,0.05040845]
[1659248273464,0.40725733,23729.0,23723.0,0.05040845]
[1659248273735,0.304308,23728.0,23723.0,0.00040845]
[1659248273963,0.304308,23727.0,23722.0,0.91793733]
[1659248274184,0.304308,23726.0,23722.0,1.01793733]
[1659248274401,0.40725733,23729.0,23722.0,1.01793733]
[1659248274617,0.304308,23728.0,23722.0,1.01793733]
[1659248274829,0.304308,23727.0,23722.0,1.01793733]
[1659248275073,0.40725733,23729.0,23722.0,1.01793733]
[1659248275302,0.304308,23728.0,23722.0,1.01793733]
[1659248275513,0.304308,23727.0,23722.0,1.01793733]
[1659248275728,0.40725733,23729.0,23722.0,1.01793733]
[1659248275948,0.304308,23728.0,23722.0,1.01793733]
[1659248276164,0.304308,23727.0,23722.0,1.01793733]
[1659248276384,0.40725733,23729.0,23722.0,1.01793733]
[1659248276615,0.304308,23728.0,23722.0,1.01793733]
[1659248276851,0.304308,23727.0,23722.0,1.01793733]
[1659248277079,0.40725733,23729.0,23722.0,1.01793733]
[1659248277300,0.304308,23728.0,23722.0,1.01793733]
[1659248277502,0.40725733,23729.0,23722.0,1.01793733]
[1659248277764,0.304308,23728.0,23722.0,1.01793733]
[1659248277993,0.40725733,23729.0,23722.0,1.01793733]
[1659248278207,0.304308,23728.0,23723.0,0.40725733]
[1659248278427,0.304308,23727.0,23724.0,0.3]
[1659248278639,0.304308,23726.0,23724.0,0.3]
[1659248278861,2.07613468,23730.0,23724.0,0.3]
[1659248279082,0.604308,23729.0,23724.0,0.3]
[1659248279298,0.304308,23728.0,23724.0,0.3]
[1659248279504,0.304308,23727.0,23724.0,0.3]
[1659248279722,0.3,23729.0,23724.0,0.3]
[1659248279723,0.304308,23726.0,23724.0,0.3]
[1659248279932,0.3,23729.0,23724.0,0.3]
[1659248280150,0.304308,23728.0,23724.0,0.610657]
[1659248280369,0.3,23729.0,23724.0,0.610657]
[1659248280601,0.304308,23728.0,23724.0,0.610657]
[1659248280805,0.3,23729.0,23724.0,0.610657]
[1659248281019,0.304308,23728.0,23724.0,0.610657]
[1659248281222,0.3,23729.0,23724.0,0.510657]
[1659248281450,0.304308,23728.0,23724.0,0.510657]
[1659248281666,0.304308,23727.0,23724.0,0.510657]
[1659248281886,0.3,23729.0,23724.0,0.510657]
[1659248282105,0.304308,23728.0,23724.0,0.510657]
[1659248282319,0.3,23729.0,23724.0,0.510657]
[1659248282530,0.304308,23728.0,23724.0,0.610657]
[1659248282777,2.07613468,23730.0,23724.0,0.510657]
[1659248282964,0.604308,23729.0,23724.0,0.510657]
[1659248283193,0.3,23729.0,23724.0,0.510657]
[1659248283847,1.66887735,23730.0,23724.0,0.510657]
[1659248284117,0.304308,23729.0,23724.0,1.01791433]
[1659248284348,1.66887735,23730.0,23724.0,0.96791433]
[1659248284562,0.304308,23729.0,23724.0,1.01791433]
[1659248284780,0.3,23729.0,23724.0,0.91791433]
[1659248284994,0.304308,23728.0,23725.0,0.40725733]
[1659248285204,0.3,23729.0,23725.0,0.40725733]
[1659248285455,0.304308,23728.0,23725.0,0.40725733]
[1659248285721,0.30419448,23727.0,23725.0,0.40725733]
[1659248285935,0.3,23729.0,23725.0,0.40725733]
[1659248286160,0.304285,23728.0,23725.0,0.40725733]
[1659248286371,0.304285,23727.0,23725.0,0.40725733]
[1659248286587,0.3,23729.0,23725.0,0.40725733]
[1659248286807,0.304285,23728.0,23725.0,0.40725733]
[1659248287023,0.3,23729.0,23728.0,0.00031815]
[1659248287024,0.6,23729.0,23728.0,0.00031815]
[1659248287239,0.604285,23729.0,23728.0,0.00031815]
[1659248292997,0.304285,23729.0,23728.0,0.00031815]
[1659248295691,1.66887735,23730.0,23728.0,0.00031815]
[1659248295935,0.304285,23729.0,23728.0,0.00031815]
[1659248305356,1.66887735,23730.0,23728.0,0.00031815]
[1659248305590,0.304285,23729.0,23728.0,0.00031815]
[1659248306084,1.66887735,23730.0,23728.0,0.00031815]
[1659248306287,0.604285,23729.0,23728.0,0.00031815]
[1659248307270,0.3997,23732.0,23728.0,0.00031815]
[1659248307271,0.001,23732.0,23730.0,0.05]
[1659248307488,0.001,23733.0,23731.0,1.80725733]
[1659248307704,0.001,23740.0,23738.0,0.05]
[1659248307929,0.001,23740.0,23739.0,0.35]
[1659248308150,0.001,23740.0,23739.0,0.05]
[1659248309299,0.001,23740.0,23739.0,0.45725733]
[1659248309558,0.001,23740.0,23739.0,0.75839443]
[1659248310214,0.001,23740.0,23739.0,0.45839443]
[1659248310436,0.001,23740.0,23739.0,0.79639443]
[1659248311569,0.001,23740.0,23739.0,1.15066243]
[1659248311799,0.001,23740.0,23739.0,1.16266243]
[1659248312016,0.001,23740.0,23739.0,0.85839443]
[1659248312244,0.001,23740.0,23739.0,1.15839443]
[1659248312476,0.001,23740.0,23739.0,2.44971536]
[1659248312942,0.001,23740.0,23739.0,1.19929243]
[1659248313168,0.001,23740.0,23739.0,1.16766243]
[1659248313395,0.001,23740.0,23739.0,1.19929243]
[1659248313704,0.001,23740.0,23739.0,1.19429243]
[1659248313924,0.001,23740.0,23739.0,1.16266243]
[1659248314143,0.001,23740.0,23739.0,2.30975752]
[1659248314391,0.001,23740.0,23739.0,2.37938752]
[1659248315758,0.001,23740.0,23739.0,2.34138752]
[1659248316424,0.001,23740.0,23739.0,2.37938752]
[1659248316638,0.001,23740.0,23739.0,2.34775752]
[1659248316853,0.001,23740.0,23739.0,2.37938752]
[1659248317758,0.001,23742.0,23739.0,2.34138752]
[1659248317982,0.002,23744.0,23741.0,0.45725733]
[1659248318205,0.002,23747.0,23745.0,0.45]
[1659248318424,0.00218243,23747.0,23745.0,2.43315274]
[1659248318705,0.00218243,23747.0,23745.0,2.48315274]
[1659248318937,0.00218243,23747.0,23745.0,2.08315274]
[1659248319160,0.00218243,23747.0,23745.0,2.08704853]
[1659248319161,0.002,23747.0,23745.0,2.08704853]
[1659248319388,0.002,23747.0,23745.0,2.09969201]
[1659248319853,0.002,23747.0,23745.0,2.08704853]
[1659248320313,0.002,23747.0,23745.0,1.38278053]
[1659248320531,0.002,23747.0,23745.0,1.72604853]
[1659248321454,0.002,23747.0,23745.0,2.12604853]
[1659248321686,0.002,23747.0,23745.0,2.08704853]
[1659248322367,0.002,23747.0,23745.0,2.13504853]
[1659248322833,0.002,23747.0,23745.0,2.17897955]
[1659248323054,0.002,23747.0,23745.0,2.14735955]
[1659248323768,0.002,23747.0,23745.0,2.09935955]
[1659248324399,0.002,23747.0,23745.0,2.14135955]
[1659248325936,0.002,23747.0,23745.0,2.04935955]
[1659248326477,0.002,23747.0,23745.0,2.09135955]
[1659248327786,0.002,23747.0,23745.0,2.04935955]
[1659248328406,0.002,23747.0,23745.0,2.09135955]
[1659248329755,0.002,23747.0,23745.0,2.04935955]
[1659248330432,0.002,23747.0,23745.0,2.09135955]
[1659248331663,0.002,23747.0,23745.0,2.04935955]
[1659248332884,0.002,23747.0,23745.0,1.74509155]
[1659248333017,0.002,23747.0,23745.0,2.04935955]
[1659248333242,0.002,23747.0,23745.0,2.09135955]
[1659248335892,0.002,23747.0,23745.0,2.04935955]
[1659248336423,0.002,23747.0,23745.0,2.08435955]
[1659248337511,0.09367,23746.0,23745.0,1.39405314]
[1659248337762,0.09367,23746.0,23745.0,1.08978514]
[1659248337982,0.09367,23746.0,23745.0,0.66890414]
[1659248338187,0.09367,23746.0,23745.0,0.63390414]
[1659248338414,0.09367,23746.0,23745.0,0.70090414]
[1659248338625,0.09367,23746.0,23745.0,0.68859312]
[1659248339768,0.09367,23746.0,23745.0,0.62159312]
[1659248340208,0.00092705,23746.0,23745.0,0.62159312]
[1659248340423,0.00092705,23746.0,23745.0,0.68859312]
[1659248340635,0.00092705,23746.0,23745.0,0.98859312]
[1659248341698,0.00092705,23746.0,23745.0,0.92159312]
[1659248342356,0.00092705,23746.0,23745.0,0.98859312]
[1659248343664,0.00092705,23746.0,23745.0,0.92159312]
[1659248344353,0.00092705,23746.0,23745.0,0.98859312]
[1659248345741,0.00092705,23746.0,23745.0,0.92159312]
[1659248347475,0.00092705,23746.0,23745.0,1.02159312]
[1659248347677,0.00092705,23746.0,23745.0,1.31191175]
[1659248347896,0.00092705,23746.0,23745.0,1.21191175]
[1659248348120,0.00092705,23746.0,23745.0,0.98859312]
[1659248348559,0.00092705,23746.0,23745.0,1.03859312]
[1659248348788,0.00092705,23746.0,23745.0,1.37286112]
[1659248349004,0.00092705,23746.0,23745.0,1.01859312]
[1659248349504,0.00092705,23746.0,23745.0,0.97159312]
[1659248349727,0.00092705,23746.0,23745.0,1.02159312]
[1659248350375,0.00092705,23746.0,23745.0,1.32586112]
[1659248350582,0.00092705,23746.0,23745.0,1.02159312]
[1659248351772,0.00092705,23746.0,23745.0,1.35586112]
[1659248351941,0.00092705,23746.0,23745.0,1.05159312]
[1659248353081,0.00092705,23746.0,23745.0,1.02159312]
[1659248353302,0.00092705,23746.0,23745.0,1.35586112]
[1659248353502,0.00092705,23746.0,23745.0,1.05159312]
[1659248354412,0.00092705,23746.0,23745.0,1.04659312]
[1659248354868,0.00092705,23746.0,23745.0,1.35086112]
[1659248355322,0.59841155,23746.0,23745.0,1.35086112]
[1659248355529,0.59841155,23746.0,23745.0,1.04659312]
[1659248355731,0.59841155,23746.0,23745.0,1.02159312]
[1659248356450,0.59841155,23746.0,23745.0,1.36486112]
[1659248356669,0.59841155,23746.0,23745.0,1.06059312]
[1659248357761,0.59841155,23746.0,23745.0,1.02159312]
[1659248357975,0.59841155,23746.0,23745.0,1.32586112]
[1659248358447,0.59841155,23746.0,23745.0,1.02159312]
[1659248358885,0.59841155,23746.0,23745.0,1.06059312]
[1659248360223,0.59841155,23746.0,23745.0,1.32586112]
[1659248360463,0.59841155,23746.0,23745.0,1.06059312]
[1659248361594,0.59841155,23746.0,23745.0,1.01059312]
[1659248361807,0.59841155,23746.0,23745.0,0.92159312]
[1659248362683,0.59841155,23746.0,23745.0,1.02159312]
[1659248362862,0.59834565,23746.0,23745.0,1.06059312]
[1659248363940,0.59834565,23746.0,23745.0,1.36486112]
[1659248364160,0.59834565,23746.0,23745.0,1.06059312]
[1659248364402,0.59834565,23746.0,23745.0,1.09659312]
[1659248364696,0.59834565,23746.0,23745.0,1.05759312]
[1659248365819,0.59834565,23746.0,23745.0,1.02159312]
[1659248366448,0.59834565,23746.0,23745.0,1.05759312]
[1659248367755,0.59834565,23746.0,23745.0,1.02159312]
[1659248368094,0.59834565,23746.0,23745.0,0.92159312]
[1659248368316,0.59834565,23746.0,23745.0,0.97159312]
[1659248368539,0.59834565,23746.0,23745.0,1.05759312]
[1659248369881,0.59834565,23746.0,23745.0,1.02159312]
[1659248370546,0.59834565,23746.0,23745.0,1.05759312]
[1659248371238,0.59834565,23746.0,23745.0,0.95759312]
[1659248371677,0.59834565,23746.0,23745.0,1.00759312]
[1659248371894,0.59834565,23746.0,23745.0,1.02159312]
[1659248372118,0.59834565,23746.0,23745.0,0.92159312]
[1659248372365,0.59834565,23746.0,23745.0,0.95759312]
[1659248372615,0.59834565,23746.0,23745.0,0.65759312]
[1659248373932,0.59834565,23746.0,23745.0,0.92159312]
[1659248374371,0.59834565,23746.0,23745.0,0.95759312]
[1659248375952,0.59834565,23746.0,23745.0,0.92159312]
[1659248377761,0.59834565,23746.0,23745.0,1.22586112]
[1659248377982,0.59834565,23746.0,23745.0,0.92159312]
[1659248378431,0.59834565,23746.0,23745.0,0.95759312]
[1659248378640,0.59834565,23746.0,23745.0,0.95369733]
[1659248378854,0.59834565,23746.0,23745.0,0.98969733]
[1659248379286,0.59834565,23746.0,23745.0,0.99341029]
[1659248379711,0.59834565,23746.0,23745.0,0.92141029]
[1659248380197,0.59834565,23746.0,23745.0,0.91769733]
[1659248380882,0.59834565,23746.0,23745.0,0.95769733]
[1659248381328,0.59834565,23746.0,23745.0,1.00769733]
[1659248381544,0.59834565,23746.0,23745.0,1.24804895]
[1659248382204,0.59834565,23746.0,23745.0,1.20804895]
[1659248382426,0.59834565,23746.0,23745.0,1.24846215]
[1659248383552,0.59834565,23746.0,23745.0,1.24804895]
[1659248383553,0.63487628,23746.0,23745.0,1.24804895]
[1659248383830,0.63487628,23746.0,23745.0,0.90804895]
[1659248383831,0.59834565,23746.0,23745.0,0.90804895]
[1659248384062,1.31364538,23746.0,23738.0,0.10525]
[1659248384292,1.01152533,23745.0,23738.0,0.40725733]
[1659248384519,1.29645733,23745.0,23738.0,0.40725733]
[1659248384745,0.304268,23744.0,23738.0,0.40725733]
[1659248384968,1.29645733,23745.0,23738.0,0.40725733]
[1659248384969,0.35,23743.0,23738.0,0.40725733]
[1659248385194,0.304268,23742.0,23738.0,0.40725733]
[1659248385441,0.03653063,23741.0,23738.0,0.40725733]
[1659248385684,0.80365402,23743.0,23738.0,0.40725733]
[1659248385911,0.304268,23742.0,23738.0,0.40725733]
[1659248386123,0.80365402,23743.0,23738.0,0.40725733]
[1659248386367,0.304155,23742.0,23738.0,0.40725733]
[1659248386606,0.03653063,23741.0,23739.0,0.3]
[1659248386838,0.03653063,23741.0,23738.0,0.40725733]
[1659248387080,0.80365402,23743.0,23739.0,0.304155]
[1659248387081,0.05,23743.0,23739.0,0.304155]
[1659248387305,0.304155,23742.0,23738.0,0.40725733]
[1659248387535,0.05,23743.0,23738.0,0.40725733]
[1659248387987,0.05,23743.0,23739.0,0.3]
[1659248388233,0.34068563,23742.0,23739.0,0.29989694]
[1659248388461,0.03653063,23742.0,23739.0,0.29989694]
[1659248388692,0.34068563,23742.0,23739.0,0.29989694]
[1659248389366,0.00185747,23742.0,23739.0,0.29989694]
[1659248389593,0.05,23743.0,23739.0,0.29989694]
[1659248389810,0.34068563,23742.0,23739.0,0.29989694]
[1659248390466,0.304155,23742.0,23739.0,0.29989694]
[1659248390933,0.72789664,23744.0,23740.0,0.409417]
[1659248391152,0.304155,23743.0,23741.0,0.70725733]
[1659248391378,0.72789664,23744.0,23742.0,0.40725733]
[1659248391635,0.304155,23743.0,23742.0,0.40725733]
[1659248394298,0.304155,23743.0,23741.0,0.40725733]
[1659248394540,0.304155,23743.0,23742.0,0.3]
[1659248395002,0.5892,23745.0,23742.0,0.51051]
[1659248395233,0.304155,23744.0,23742.0,0.56051]
[1659248395500,0.89834565,23746.0,23742.0,0.51051]
[1659248395721,0.304155,23745.0,23742.0,0.51051]
[1659248396171,0.03653063,23745.0,23742.0,0.51051]
[1659248396410,0.34068563,23745.0,23742.0,0.51051]
[1659248396624,0.03653063,23745.0,23742.0,0.51051]
[1659248396855,0.304155,23744.0,23742.0,0.51051]
[1659248397301,0.89834565,23746.0,23742.0,0.51051]
[1659248397522,0.34068563,23745.0,23742.0,0.51051]
[1659248397750,0.59834565,23746.0,23743.0,0.40725733]
[1659248397996,0.304155,23745.0,23743.0,0.69754053]
[1659248398216,0.59834565,23746.0,23744.0,0.40725733]
[1659248398430,0.304155,23745.0,23744.0,0.40725733]
[1659248399086,0.304155,23745.0,23743.0,0.40725733]
[1659248399339,0.63487628,23746.0,23743.0,0.40725733]
[1659248399576,0.304155,23745.0,23743.0,0.40725733]
[1659248399796,0.63401513,23746.0,23743.0,0.40725733]
[1659248400010,0.304155,23745.0,23743.0,0.40725733]
[1659248400227,0.63401513,23746.0,23743.0,0.40725733]
[1659248400460,0.304155,23745.0,23743.0,0.40725733]
[1659248400699,0.63401513,23746.0,23744.0,0.3]
[1659248400947,0.304155,23745.0,23744.0,0.3]
[1659248401174,0.304155,23745.0,23743.0,0.40725733]
[1659248401401,0.63401513,23746.0,23743.0,0.40725733]
[1659248401619,0.304155,23745.0,23743.0,0.40725733]
[1659248401843,0.63401513,23746.0,23743.0,0.40725733]
[1659248402056,0.304155,23745.0,23743.0,0.40725733]
[1659248402290,0.63401513,23746.0,23743.0,0.40725733]
[1659248402508,0.304155,23745.0,23743.0,0.40725733]
[1659248402736,0.63401513,23746.0,23744.0,0.3]
[1659248402958,0.304155,23745.0,23743.0,0.40725733]
[1659248403229,0.5974845,23746.0,23743.0,0.40725733]
[1659248403462,0.304155,23745.0,23743.0,0.40725733]
[1659248403688,0.5974845,23746.0,23743.0,0.40725733]
[1659248403917,0.304155,23745.0,23743.0,0.40725733]
[1659248404142,0.5974845,23746.0,23743.0,0.40725733]
[1659248404341,0.304155,23745.0,23743.0,0.40725733]
[1659248404577,0.5974845,23746.0,23743.0,0.40725733]
[1659248404781,0.304155,23745.0,23743.0,0.40725733]
[1659248405014,0.5974845,23746.0,23743.0,0.40743473]
[1659248405230,0.304155,23745.0,23743.0,0.40743473]
[1659248405436,0.5974845,23746.0,23743.0,0.40743473]
[1659248405663,0.304155,23745.0,23743.0,0.40743473]
[1659248405876,0.5974845,23746.0,23743.0,0.40725733]
[1659248406102,0.304155,23745.0,23743.0,0.40725733]
[1659248406326,0.5974845,23746.0,23743.0,0.40725733]
[1659248406540,0.304155,23745.0,23743.0,0.40725733]
[1659248407020,0.5974845,23746.0,23743.0,0.40725733]
[1659248407240,0.304155,23745.0,23743.0,0.40725733]
[1659248407493,0.5974845,23746.0,23743.0,0.40725733]
[1659248407717,0.58626394,23746.0,23743.0,0.40725733]
[1659248407939,0.304155,23745.0,23743.0,0.40725733]
[1659248408153,0.58626394,23746.0,23743.0,0.40725733]
[1659248408376,0.304155,23745.0,23743.0,0.40725733]
[1659248408597,0.58626394,23746.0,23743.0,0.40725733]
[1659248408832,0.304155,23745.0,23743.0,0.40725733]
[1659248409072,0.58626394,23746.0,23743.0,0.40725733]
[1659248409295,0.304155,23745.0,23744.0,0.05248398]
[1659248410444,0.304155,23745.0,23744.0,0.08448398]